Cogmind - Beta 16 @@@ ROGUE MODE // 2025.11.13 @ 15:09:36 Player: Zane Result: Destroyed by WI-1L3(R) with Subdweller Laser Performance ------------- Evolutions (0) 0 Regions Visited (2) 400 Robots Destroyed (6) 30 Value Destroyed (174) 174 Prototype IDs (0) 0 Alien Tech Used (0) 0 Bonus (0) 0 TOTAL SCORE: 604 Bonus ------- None Cogmind --------- Core Integrity 0/250 Matter 286/300 Energy 100/100 System Corruption 0% Temperature Cool (6) Movement Rolling (110) Location -10/Subcaves Parts ------- > --- POWER (1) -------- (None) > --- PROPULSION (2) --- Subdweller Monowheel > --- UTILITY (2) ------ Small Storage Unit Makeshift Light Armor Plating > --- WEAPON (2) ------- Battle Rifle Battle Rifle > --- INVENTORY (8) ---- Ion Engine Scrap Shield EM Pulse Gun Salvaging Laser Subdweller Beam Cannon Slug Cannon Mining Laser Peak State ------------ > --- POWER ------------ Light Ion Engine > --- PROPULSION ------- Light Treads Subdweller Monowheel > --- UTILITY ---------- Small Storage Unit Makeshift Light Armor Plating > --- WEAPON ----------- Battle Rifle Battle Rifle > --- INVENTORY -------- Ion Engine Improved Terrain Scanner Scrap Shield EM Pulse Gun Salvaging Laser Subdweller Beam Cannon Mining Laser [Rating: 14] Favorites ----------- Power Light Ion Engine Engine Light Ion Engine Propulsion Light Treads Treads Light Treads Wheel Subdweller Monowheel Utility Small Storage Unit Device Subdweller Optics Storage Small Storage Unit Protection Makeshift Light Armor Plating Weapon Light Assault Rifle Energy Gun Salvaging Laser Ballistic Gun Light Assault Rifle Build | -11 -10 -10 ------- Run | Yrd Mat Sub Slots Evolved . | . . . Power . | . . . Propulsion . | . . . Utility . | . . . Weapon . | . . . Parts Attached 13 | 7 . 6 Power 1 | 1 . . Engine 1 | 1 . . Core . | . . . Reactor . | . . . Propulsion 3 | 2 . 1 Treads 2 | 2 . . Leg . | . . . Wheel 1 | . . 1 Hover . | . . . Flight . | . . . Utility 4 | 2 . 2 Device 2 | 1 . 1 Storage 1 | 1 . . Processor . | . . . Hackware . | . . . Protection 1 | . . 1 Artifact . | . . . Weapon 5 | 2 . 3 Energy Gun 1 | . . 1 Energy Cannon . | . . . Ballistic Gun 4 | 2 . 2 Ballistic Cannon . | . . . Launcher . | . . . Special Weapon . | . . . Impact Weapon . | . . . Slashing Weapon . | . . . Piercing Weapon . | . . . Special Melee Weapon . | . . . Unidentified Prototypes . | . . . Parts Lost 5 | . . 5 Power 1 | . . 1 Propulsion 2 | . . 2 Utility 1 | . . 1 Weapon 1 | . . 1 Highest Loss Streak 2 | . . 2 To Critical Strikes . | . . . Average Backups 6 | 3 6 6 Power . | . 1 1 Propulsion 1 | 1 2 . Utility 1 | . 1 1 Weapon 3 | . 2 3 Tool/Special . | . . . Unused Backups 10 | . . 10 Power 1 | . . 1 Propulsion 2 | . . 2 Utility 2 | . . 2 Weapon 5 | . . 5 Tool/Special . | . . . Average Slot Usage (%) 92 | . 100 92 Engine 13 | . 14 13 Treads 19 | . 28 19 Wheel 4 | . . 4 Device 7 | . 14 7 Storage 14 | . 14 14 Protection 4 | . . 4 Energy Gun 3 | . . 3 Ballistic Gun 24 | . 28 24 Peak Build Rating 14 | 7 7 14 Average Rating 8 | 5 7 9 On Entrance 4 | . 7 7 Avg Prop Armor Cover (%) 10 | . . 10 Naked Turns . | . . . Heaviest Build 16 | 12 12 16 Greatest Support 40 | 40 40 40 Greatest Overweight (x) 2 | 2 . . Average Overweight (x) . | . . . Largest Inventory Capacity 8 | 8 8 8 Average Capacity 7 | 7 8 8 Most Carried 8 | 6 6 8 Average Carried 6 | 3 6 7 Final Capacity 8 | 8 8 8 Final Carried 8 | 6 6 8 Class Distribution -------------------- 72% | Mutant 27% | Derelict-Mutant Dominant Class ---------------- Mutant | -10/Materials Mutant | -10/Subcaves Resources | -11 -10 -10 ----------- Run | Yrd Mat Sub Matter Collected 468 | 261 . 207 Remotely . | . . . Salvage Created 256 | 50 . 206 Parts 15 | 6 . 9 Haulers Intercepted . | . . . Recyclers Shooed 1 | 1 . . Parts Field Recycled . | . . . Retrieved Matter . | . . . Parts Self-Destructed . | . . . Prevented . | . . . Parts Restored . | . . . Kills | -11 -10 -10 ------- Run | Yrd Mat Sub Combat Hostiles Destroyed 4 | . . 4 Guns 4 | . . 4 Classes Destroyed 2 | 1 . 1 Tunneler 2 | 2 . . Subdweller 4 | . . 4 Best Kill Streak 2 | 2 . 1 Combat Bots Only 1 | . . 1 Max Kills in Single Turn 1 | 1 . 1 Gunslinging . | . . . Exploded . | . . . Melee . | . . . Uniques/NPCs Destroyed . | . . . Combat | -11 -10 -10 -------- Run | Yrd Mat Sub Hostile Shots Fired 46 | . . 46 Missed 15 | . . 15 Hits 31 | . . 31 Projectile 31 | . . 31 Critical Strikes 2 | . . 2 Damage Taken 875 | . . 875 Core 260 | . . 260 Absorbed by Shields . | . . . Core Remaining (%) 100 | 100 . . Volleys Fired 51 | 5 . 46 Largest 2 | 2 . 2 Hottest 50 | 40 . 50 Shots Fired 97 | 10 . 87 Gun 97 | 10 . 87 Cannon . | . . . Launcher . | . . . Special . | . . . Kinetic 92 | 10 . 82 Thermal 5 | . . 5 Explosive . | . . . Electromagnetic . | . . . Robot Hit Streak 13 | 5 . 13 Robot Miss Streak 4 | 4 . 3 Penetration Max . | . . . Secondary Targets . | . . . Shots Hit Robots 73 | 5 . 68 Core Hits 15 | 3 . 12 Critical Kills . | . . . Critical Parts Destroyed . | . . . Critical Strikes . | . . . Melee Attacks . | . . . Impact . | . . . Slashing . | . . . Piercing . | . . . Sneak Attacks . | . . . Combat Hostiles . | . . . Follow-up Attacks . | . . . Damage Inflicted 503 | 71 . 432 Guns 497 | 65 . 432 Cannons . | . . . Explosions . | . . . Melee . | . . . Ramming 6 | 6 . . Kinetic 462 | 65 . 397 Thermal 35 | . . 35 Explosive . | . . . Electromagnetic . | . . . Impact . | . . . Slashing . | . . . Piercing . | . . . Highest Corruption . | . . . Average Corruption . | . . . Corruption Purged . | . . . Corruption Blocked . | . . . Overload Shots . | . . . Overflow Damage . | . . . Projectiles . | . . . Explosions . | . . . Melee . | . . . Knockbacks . | . . . Impact . | . . . Kinetic . | . . . Secondary . | . . . Self-Inflicted Damage . | . . . Shots . | . . . Rammed 2 | 2 . . Targets Rammed 2 | 2 . . Kicked . | . . . Crushed . | . . . Highest Temperature 251 | . . 251 Average Temperature 128 | . . 128 Received Heat Transfer 772 | . . 772 Siege Activations . | . . . Martial Activations . | . . . Shielding Activations . | . . . Robots Disrupted . | . . . Combat Hostiles . | . . . Robots Corrupted . | . . . Combat Hostiles . | . . . Parts Fried . | . . . Impact Corruptions . | . . . Robots Melted . | . . . Combat Hostiles . | . . . Parts Melted . | . . . Heat Transferred 100 | . . 100 Parts Sabotaged . | . . . Parts Stolen . | . . . Parts Stripped . | . . . Power Chain Reactions . | . . . Alert | -11 -10 -10 ------- Run | Yrd Mat Sub Maximum Alert Level . | . . . Low Security (%) 100 | 100 100 . Level 1 . | . . . Level 2 . | . . . Level 3 . | . . . Level 4 . | . . . Level 5 . | . . . High Security . | . . . Max Security . | . . . Peak Influence 5 | 5 . . Initial . | . . . Average . | . . . Influence Increases 10 | 10 . . Destroy 0b10 Robot/NC 10 | 10 . . Influence Decreases 10 | 10 . . Time Decay 10 | 10 . . Squads Dispatched . | . . . Investigation . | . . . Extermination . | . . . Reinforcement . | . . . Assault . | . . . Garrison . | . . . Intercept . | . . . Searches Triggered . | . . . Construction Impeded . | . . . Haulers Reinforced . | . . . Active Scanning Responses . | . . . Cargo Convoy Interrupts . | . . . Stealth | -11 -10 -10 --------- Run | Yrd Mat Sub Distress Signals . | . . . Communications Jammed . | . . . Distress Signals . | . . . Times Spotted 8 | . . 8 Peak Tracking Total 2 | . . 2 Tactical Retreats . | . . . Traps | -11 -10 -10 ------- Run | Yrd Mat Sub Traps Triggered 3 | . . 3 Indirectly . | . . . Trap Hack Attempts . | . . . Triggered . | . . . Disarmed . | . . . Reprogrammed . | . . . Reused . | . . . Traps Extracted . | . . . Installed . | . . . Triggered . | . . . Machines | -11 -10 -10 ---------- Run | Yrd Mat Sub Machines Disabled . | . . . Max in Single Turn . | . . . Machines Repaired . | . . . Machines Dismantled . | . . . Machines Sabotaged . | . . . Overloaded Fab Kills . | . . . Hacking | -11 -10 -10 --------- Run | Yrd Mat Sub Machines Accessed . | . . . Terminals . | . . . Fabricators . | . . . Repair Stations . | . . . Recycling Units . | . . . Scanalyzers . | . . . Garrison Access . | . . . Total Hacks . | . . . Successful . | . . . Failed . | . . . Catastrophic . | . . . Database Lockouts . | . . . Manual . | . . . Terminals . | . . . Fabricators . | . . . Repair Stations . | . . . Recycling Units . | . . . Scanalyzers . | . . . Garrison Access . | . . . Terminal Hacks . | . . . Fabricator Hacks . | . . . Repair Station Hacks . | . . . Recycling Unit Hacks . | . . . Scanalyzer . | . . . Garrison Access Hacks . | . . . Unauthorized Hacks . | . . . Terminals . | . . . Fabricators . | . . . Repair Stations . | . . . Recycling Units . | . . . Scanalyzers . | . . . Garrison Access . | . . . Data Cores Recovered . | . . . Used . | . . . Hacking Detections . | . . . Full Trace Events . | . . . Feedback Events . | . . . Feedback Blocked . | . . . Robot Schematics Acquired . | . . . Robots Built . | . . . Authchips . | . . . Time . | . . . Total Robot Build Rating . | . . . Part Schematics Acquired . | . . . Parts Built . | . . . Authchips . | . . . Time . | . . . Total Part Build Rating . | . . . Part Studies Acquired . | . . . Parts Repaired . | . . . Time . | . . . Parts Recycled . | . . . Recycled Matter . | . . . Retrieved Matter . | . . . Retrieved Components . | . . . Parts Scanalyzed . | . . . Part Schematics Acquired . | . . . Parts Damaged . | . . . Bothacking | -11 -10 -10 ------------ Run | Yrd Mat Sub Used RIF Installer . | . . . Robots Hacked . | . . . Non-combat . | . . . Combat . | . . . Robot Hacks Applied . | . . . Relay Couplers Released . | . . . Fabnet Peak Effective % . | . . . Robots Rewired . | . . . Allies Hacked . | . . . Hacks Repelled . | . . . Allies | -11 -10 -10 -------- Run | Yrd Mat Sub Total Allies . | . . . Largest Group . | . . . Highest-Rated Group . | . . . Highest-Rated Ally . | . . . Total Orders . | . . . Ally Attacks . | . . . Total Damage . | . . . Kills . | . . . Allies Corrupted . | . . . Allies Melted . | . . . Intel | -11 -10 -10 ------- Run | Yrd Mat Sub Active Infowar (turns) 318 | 32 29 257 Optics 212 | . . 212 Seismic 106 | 32 29 45 Robot Analysis Total . | . . . Derelict Logs Recovered . | . . . Drone Launches . | . . . Drone Recoveries . | . . . Exploration | -11 -10 -10 ------------- Run | Yrd Mat Sub Turns Passed 629 | 103 29 497 Spaces Moved 307 | 46 9 252 Core 8 | 8 . . Treads 173 | 38 9 126 Legs . | . . . Wheels 126 | . . 126 Hover . | . . . Flight . | . . . Fastest Speed 50 | 50 160 110 Average Speed 137 | 148 160 135 Slowest Speed 160 | 160 160 160 Overloaded Moves . | . . . Propulsion Burnouts . | . . . Robots Hopped . | . . . Potential Cave-ins . | . . . Cave-ins Triggered . | . . . Exploration Rate (%) 9 | 5 3 19 Regions Visited 2 Branch Regions 1 Pre-discovered Areas 1 | . . 1 Known Exits Taken . | . . . Unknown Exits Taken 2 | 1 1 . Scrap Searched 7 | . . 7 Spaces Dug . | . . . Terrain Destroyed . | . . . Melee . | . . . Projectile . | . . . AOE . | . . . Terrain Rammed . | . . . Walls Destroyed . | . . . Machines Disabled . | . . . Actions | -11 -10 -10 --------- Run | Yrd Mat Sub Total 426 | 67 24 335 Wait 39 | 2 16 21 Move 305 | 45 8 252 Hop . | . . . Pick Up 12 | 6 . 6 Fast Attach 8 | 7 . 1 Attach 2 | . . 2 Detach . | . . . Swap 3 | . . 3 Drop 4 | . . 4 Fire 51 | 5 . 46 Melee . | . . . Ram . | . . . Kick . | . . . Crush 2 | 2 . . Escape Stasis . | . . . Rewire . | . . . Trap . | . . . Miscellaneous . | . . . Route ------- -11/Scrapyard -10/Materials -10/Subcaves History --------- Turn | Location | Event 16 | -11/Scrapyard | Discovered new exit (range 16) 104 | -11/Scrapyard | Entered Materials 105 | -10/Materials | Met a group of wandering Federalists 118 | -10/Materials | Discovered new exit (range 5) 133 | -10/Materials | Entered Subcaves 133 | -10/Subcaves | Accompanied by 4 allies 134 | -10/Subcaves | Ambushed by Subdwellers from Twisted Machinery 134 | -10/Subcaves | Continued accompanying wandering Federalists (5) 207 | -10/Subcaves | Lost 5 allies 312 | -10/Subcaves | Build established: Mutant 437 | -10/Subcaves | Disturbed a concealed Subdweller 438 | -10/Subcaves | Core integrity fell below 50% 444 | -10/Subcaves | Core integrity fell below 20% 539 | -10/Subcaves | Learned location of Zion (-7) 539 | -10/Subcaves | Met a Zionite searching for "candidates" 630 | -10/Subcaves | Destroyed by WI-1L3(R) with Subdweller Laser Last Messages --------------- 00476_ Acquired 10 matter. 00479_ Acquired Battle Rifle. 00480_ Dropped Imp. Terrain Scanner. 00483_ Acquired Slug Cannon. 00484_ Acquired 10 matter. 00515_ Triggered Shrapnel Trap. 00515_ An expanding cloud of shrapnel blasts out in all directions. 00518_ Triggered Shrapnel Trap. 00518_ An expanding cloud of shrapnel blasts out in all directions. 00538_ P1-DCT(z): "She is not going to be happy we haven't found any suitable candidates yet." 00539_ P1-DCT(z): "Hey you! It's really dangerous down here, I feel that you could die at any moment. For your health and safety might I suggest a trip to Zion?" World map updated: -7/Zion. 00624_ Lgt. Treads destroyed. 00629_ Lgt. Ion Engine destroyed. Map ----- +----------------------------------------------------+ | ?????????????????????????????????????????????????? | | ?????????????????????????????????????????????????? | | ?????????????????????????????????????????????????? | | ?????????????????????????????????????????????????? | | ?????????????????????????????????????????????????? | | ?????????????????????????????????????????????????? | | ?????????????????????????????????????????????????? | | ?????????????????????????????????????????????????? | | ?????????????????????????????????????????????????? | | ?????????????????????????????????????????????????? | | ?????????????????????????????????????????????????? | | ?????????????????????????????????????????????????? | | ?????????????????????????????????????????????????? | | ?????????????????????????????????????????????????? | | ?????????????????????????????????????????????????? | | ????????????#?????##??????????????? ????????????? | | ????????????# ???? ?????????????? #????????????? | | ???????????## ???# ????????????? ?????????????? | | ???????????# #### #???????????? ??????????????? | | ???????????? # #??????????% ???????????????? | | ????????????? ????????? ????????????????? | | ??????????????? ????????? #????????????????? | | ???????????????? ???????? ######???????????? | | ?????????????????# #???????# #???????????? | | ??#?????????????## ##?###?# #???????????? | | ? ?????????????## ###@## #????????????? | | ??????????????# #????????????? | | #??????????????### RR #?????????????? | | ##??????????####?# ## ###% #?????????????? | | #????????### #?## ###???### #?????????????? | | ##??????## #### ##????????#?????????????? | | ##????## ## ##?????????????????????? | | #??### ###???????????????????? | | #?## #???????????????????? | | #?#### ## ##???????????????????? | | ### #? ##????????????????????? | | ###? ###?????????????????????? | | #??? ##???????????????????????? | | ### ##???##????????????????????????? | | ##?# #### ####??????????????????????????????? | | #??# ##??######?????????????????????????????????? | | ???####??????????????????????????????????????????? | | ?????????????????????????????????????????????????? | | ?????????????????????????????????????????????????? | | ?????????????????????????????????????????????????? | | ?????????????????????????????????????????????????? | | ?????????????????????????????????????????????????? | | ?????????????????????????????????????????????????? | | ?????????????????????????????????????????????????? | | ?????????????????????????????????????????????????? | +----------------------------------------------------+ Best States ------------- Heat Dissipation 25 Energy Generation 10 Energy Capacity 125 Matter Stores 300 Matter Capacity 300 Sight Range 21 Terrain Scan Density 10 Armor Coverage 100 Evasion (%) 40 Recoil Reduction 2 Item Schematics ----------------- None Robot Schematics ------------------ None Fabricated ------------ Nothing Repaired ---------- Nothing Studied --------- None Alien Tech Used ----------------- None Achievements -------------- Strength In Numbers Challenges ------------ None Game ------ Seed MultinovaWaveRipper Manual? 0 Play Time 00:08:17 Cumulative 47.5 hours Start 2025.11.13 @ 15:02:36 End 2025.11.13 @ 15:09:36 Sessions 1 Manual Loads 0 Difficulty Rogue Special Mode None Game No. 63 Rogue 63 Adventurer 0 Explorer 0 Win Type - Total 0 Types 0/0/0/0/0/0/0/0/0/0 Lore% 46 Gallery% 37 Achievement% 24 Wizard Run 0 Options --------- Layout 1 ASCII 0 Keyboard 0 Movement Numpad Keybinds 0 Fullscreen 2 Font 24/Smallcaps Map View 50x35 Zoom Use 0% Tactical HUD 1 Map Filters NONE Filters NONE Steam 1 RUN: 10f03067-cf97-4b55-bb29-d5c6e6413931